[Event "*** Titled Tuesday Blitz"]
[Site "Chess.com"]
[Date "2019.11.05"]
[Round "2"]
[White "Misha_Bilous"]
[Black "politeplayer"]
[Result "1-0"]
[WhiteElo "2490"]
[BlackElo "2212"]
[TimeControl "180+2"]
[EndTime "13:25:31 PST"]
[Termination "Misha_Bilous won by resignation"]

1. d4 {[%clk 0:03:01.9]} 1... d5 {[%clk 0:02:59.9]} 2. c4 {[%clk 0:02:58.9]}
2... e6 {[%clk 0:03:00.9]} 3. Nc3 {[%clk 0:02:58.9]} 3... Bb4 {[%clk 0:03:02.2]}
4. Nf3 {[%clk 0:02:58.5]} 4... Nf6 {[%clk 0:03:02.5]} 5. cxd5 {[%clk 0:02:59.6]}
5... exd5 {[%clk 0:03:02.6]} 6. Bg5 {[%clk 0:03:00.5]} 6... Qd6 {[%clk
0:02:57.4]} 7. Bxf6 {[%clk 0:02:50.3]} 7... Qxf6 {[%clk 0:02:57.1]} 8. e3 {[%clk
0:02:50.6]} 8... O-O {[%clk 0:02:54.8]} 9. Be2 {[%clk 0:02:45.9]} 9... Bf5
{[%clk 0:02:44.1]} 10. O-O {[%clk 0:02:44]} 10... c6 {[%clk 0:02:44.6]} 11. Qb3
{[%clk 0:02:40.9]} 11... Qe7 {[%clk 0:02:26.1]} 12. Na4 {[%clk 0:01:31.9]} 12...
Bd6 {[%clk 0:02:19.8]} 13. Nc5 {[%clk 0:01:26.8]} 13... b6 {[%clk 0:02:15.8]}
14. Nd3 {[%clk 0:01:26.3]} 14... Nd7 {[%clk 0:02:15.2]} 15. Rac1 {[%clk
0:01:25.6]} 15... Rfc8 {[%clk 0:01:51.3]} 16. Rc3 {[%clk 0:00:51.7]} 16... Be4
{[%clk 0:01:43]} 17. Rfc1 {[%clk 0:00:46.4]} 17... c5 {[%clk 0:01:39.2]} 18.
dxc5 {[%clk 0:00:32.2]} 18... Nxc5 {[%clk 0:01:25.7]} 19. Qd1 {[%clk 0:00:32]}
19... Rd8 {[%clk 0:01:13.2]} 20. Nde1 {[%clk 0:00:14.2]} 20... a5 {[%clk
0:00:58.2]} 21. g3 {[%clk 0:00:13.3]} 21... h5 {[%clk 0:00:51]} 22. Nd4 {[%clk
0:00:07.5]} 22... Rac8 {[%clk 0:00:44.3]} 23. Nef3 {[%clk 0:00:08.3]} 23... Bxf3
{[%clk 0:00:32.9]} 24. Bxf3 {[%clk 0:00:07.1]} 24... Be5 {[%clk 0:00:27.5]} 25.
R3c2 {[%clk 0:00:05.2]} 25... h4 {[%clk 0:00:24.3]} 26. b3 {[%clk 0:00:03.6]}
26... hxg3 {[%clk 0:00:22.9]} 27. hxg3 {[%clk 0:00:04.9]} 27... Qg5 {[%clk
0:00:19.5]} 28. Kg2 {[%clk 0:00:05.5]} 28... Rb8 {[%clk 0:00:14.6]} 29. a3
{[%clk 0:00:05.6]} 29... Bxd4 {[%clk 0:00:13.4]} 30. exd4 {[%clk 0:00:06.4]}
30... Ne6 {[%clk 0:00:14.6]} 31. Qd2 {[%clk 0:00:04.7]} 31... Qg6 {[%clk
0:00:14]} 32. Rc3 {[%clk 0:00:04.1]} 32... Ng5 {[%clk 0:00:14.3]} 33. Qd3 {[%clk
0:00:03.7]} 33... Qxd3 {[%clk 0:00:13.1]} 34. Rxd3 {[%clk 0:00:05.1]} 34... Nxf3
{[%clk 0:00:14.2]} 35. Kxf3 {[%clk 0:00:06.6]} 35... Rbc8 {[%clk 0:00:15.2]} 36.
Rdc3 {[%clk 0:00:08]} 36... Rxc3+ {[%clk 0:00:15.9]} 37. Rxc3 {[%clk 0:00:09.9]}
37... Rd6 {[%clk 0:00:17.3]} 38. Rc7 {[%clk 0:00:10.3]} 38... g6 {[%clk
0:00:16.9]} 39. Kf4 {[%clk 0:00:10.7]} 39... Rf6+ {[%clk 0:00:16]} 40. Ke5
{[%clk 0:00:11.3]} 40... Rxf2 {[%clk 0:00:16.3]} 41. Kxd5 {[%clk 0:00:12.2]}
41... Rf3 {[%clk 0:00:16.1]} 42. Kc4 {[%clk 0:00:10.3]} 42... Rxg3 {[%clk
0:00:15.8]} 43. d5 {[%clk 0:00:11.6]} 43... b5+ {[%clk 0:00:15.5]} 44. Kxb5
{[%clk 0:00:07.1]} 44... Rxb3+ {[%clk 0:00:16.6]} 45. Kc6 {[%clk 0:00:07.4]}
45... Rxa3 {[%clk 0:00:14.5]} 46. d6 {[%clk 0:00:08.7]} 46... Rd3 {[%clk
0:00:14.1]} 47. d7 {[%clk 0:00:07.9]} 47... Kg7 {[%clk 0:00:14.5]} 48. Rc8
{[%clk 0:00:08.9]} 48... g5 {[%clk 0:00:15.2]} 49. d8=Q {[%clk 0:00:10.1]} 49...
Rxd8 {[%clk 0:00:16.3]} 50. Rxd8 {[%clk 0:00:12]} 50... g4 {[%clk 0:00:16.5]}
51. Kd5 {[%clk 0:00:11.1]} 51... Kf6 {[%clk 0:00:16.8]} 52. Ke4 {[%clk
0:00:10.3]} 52... a4 {[%clk 0:00:15.5]} 53. Rg8 {[%clk 0:00:09.9]} 1-0

[Event "*** Titled Tuesday Blitz"]
[Site "Chess.com"]
[Date "2019.11.05"]
[Round "2"]
[White "Alopekos"]
[Black "Vasily85"]
[Result "1-0"]
[WhiteElo "2473"]
[BlackElo "2188"]
[TimeControl "180+2"]
[EndTime "13:25:35 PST"]
[Termination "Alopekos won by resignation"]

1. e4 {[%clk 0:03:01.9]} 1... c5 {[%clk 0:03:00.8]} 2. Nc3 {[%clk 0:02:59]} 2...
Nc6 {[%clk 0:03:01.7]} 3. Nge2 {[%clk 0:02:56.3]} 3... g6 {[%clk 0:03:01.6]} 4.
d4 {[%clk 0:02:53]} 4... cxd4 {[%clk 0:03:03.5]} 5. Nxd4 {[%clk 0:02:54.9]} 5...
Bg7 {[%clk 0:03:04.5]} 6. Nxc6 {[%clk 0:02:56.6]} 6... bxc6 {[%clk 0:03:05.3]}
7. Bc4 {[%clk 0:02:58.3]} 7... d6 {[%clk 0:02:40]} 8. Qf3 {[%clk 0:02:57]} 8...
Nf6 {[%clk 0:02:38.4]} 9. e5 {[%clk 0:02:58.4]} 9... dxe5 {[%clk 0:02:40.3]} 10.
Qxc6+ {[%clk 0:02:58.4]} 10... Bd7 {[%clk 0:02:41.1]} 11. Qa6 {[%clk 0:02:59.4]}
11... O-O {[%clk 0:02:33.7]} 12. O-O {[%clk 0:03:00.1]} 12... Qc8 {[%clk
0:02:26.9]} 13. Be3 {[%clk 0:02:34.6]} 13... Qxa6 {[%clk 0:01:59.6]} 14. Bxa6
{[%clk 0:02:36.5]} 14... Bc8 {[%clk 0:01:47.1]} 15. Bc4 {[%clk 0:02:23]} 15...
Bb7 {[%clk 0:01:43.3]} 16. Rfd1 {[%clk 0:02:22.5]} 16... Rfc8 {[%clk 0:01:34.9]}
17. Bb3 {[%clk 0:02:22.9]} 17... a6 {[%clk 0:01:08.6]} 18. Rd2 {[%clk
0:02:04.1]} 18... Ne4 {[%clk 0:01:01.1]} 19. Rd7 {[%clk 0:02:04.9]} 19... Nxc3
{[%clk 0:00:26.3]} 20. Rxb7 {[%clk 0:01:18.8]} 20... Ne2+ {[%clk 0:00:26.7]} 21.
Kf1 {[%clk 0:01:19.7]} 21... Nd4 {[%clk 0:00:28.6]} 22. Bxd4 {[%clk 0:01:19.7]}
22... exd4 {[%clk 0:00:30.5]} 23. Rxe7 {[%clk 0:01:20.9]} 23... Rf8 {[%clk
0:00:30.1]} 24. Rae1 {[%clk 0:01:19.8]} 24... Bf6 {[%clk 0:00:31.2]} 25. Rb7
{[%clk 0:01:04]} 25... Kg7 {[%clk 0:00:28.9]} 26. f4 {[%clk 0:00:51.5]} 26...
Rab8 {[%clk 0:00:28.8]} 27. Rxb8 {[%clk 0:00:50]} 27... Rxb8 {[%clk 0:00:30.7]}
28. g4 {[%clk 0:00:49]} 28... h6 {[%clk 0:00:29.3]} 29. Re4 {[%clk 0:00:31.8]}
29... Kf8 {[%clk 0:00:25.8]} 30. h4 {[%clk 0:00:15.9]} 30... Re8 {[%clk
0:00:16.7]} 31. Rxe8+ {[%clk 0:00:16.6]} 31... Kxe8 {[%clk 0:00:18.6]} 32. g5
{[%clk 0:00:17.8]} 32... hxg5 {[%clk 0:00:20.5]} 33. hxg5 {[%clk 0:00:19]} 33...
Bg7 {[%clk 0:00:08.4]} 34. Bc4 {[%clk 0:00:17.1]} 34... a5 {[%clk 0:00:08.7]}
35. Bd3 {[%clk 0:00:14.5]} 35... Ke7 {[%clk 0:00:09.9]} 36. Kg2 {[%clk
0:00:15.4]} 36... Ke6 {[%clk 0:00:07.6]} 37. Kf3 {[%clk 0:00:16.6]} 37... Bf8
{[%clk 0:00:08.5]} 38. Ke4 {[%clk 0:00:13.7]} 38... Bc5 {[%clk 0:00:08.5]} 39.
Bc4+ {[%clk 0:00:15]} 39... Kd6 {[%clk 0:00:07.6]} 40. Bxf7 {[%clk 0:00:15.5]}
40... a4 {[%clk 0:00:05.1]} 41. Bxg6 {[%clk 0:00:15.6]} 41... a3 {[%clk
0:00:06.6]} 42. bxa3 {[%clk 0:00:15.3]} 42... Bxa3 {[%clk 0:00:07.2]} 43. Kxd4
{[%clk 0:00:16.4]} 43... Bc1 {[%clk 0:00:08.8]} 44. Ke4 {[%clk 0:00:16.8]} 44...
Ke6 {[%clk 0:00:08.9]} 45. a4 {[%clk 0:00:11.9]} 45... Bd2 {[%clk 0:00:09.2]}
46. c4 {[%clk 0:00:12.2]} 46... Kd6 {[%clk 0:00:10]} 47. Be8 {[%clk 0:00:12.4]}
47... Ke6 {[%clk 0:00:10.9]} 48. c5 {[%clk 0:00:12.3]} 48... Bb4 {[%clk
0:00:10.4]} 49. c6 {[%clk 0:00:13.7]} 49... Kd6 {[%clk 0:00:10.2]} 50. Kf5
{[%clk 0:00:10.7]} 50... Bd2 {[%clk 0:00:11.2]} 51. g6 {[%clk 0:00:11.6]} 51...
Bc3 {[%clk 0:00:12.1]} 52. Kg5 {[%clk 0:00:10.7]} 52... Bb2 {[%clk 0:00:11.3]}
53. f5 {[%clk 0:00:06.7]} 53... Bc1+ {[%clk 0:00:11.3]} 54. Kf6 {[%clk
0:00:06.8]} 54... Bb2+ {[%clk 0:00:13.2]} 55. Kf7 {[%clk 0:00:08]} 1-0

[Event "*** Titled Tuesday Blitz"]
[Site "Chess.com"]
[Date "2019.11.05"]
[Round "2"]
[White "Galiev_Azat"]
[Black "Crazy_girl99"]
[Result "0-1"]
[WhiteElo "2213"]
[BlackElo "2499"]
[TimeControl "180+2"]
[EndTime "13:25:39 PST"]
[Termination "Crazy_girl99 won by resignation"]

1. d4 {[%clk 0:02:58.8]} 1... e6 {[%clk 0:03:00.6]} 2. Bf4 {[%clk 0:02:59.3]}
2... b6 {[%clk 0:03:00.3]} 3. e3 {[%clk 0:02:58.9]} 3... Bb7 {[%clk 0:03:01.5]}
4. Nf3 {[%clk 0:02:59]} 4... Nf6 {[%clk 0:03:02.3]} 5. Nbd2 {[%clk 0:02:59]}
5... Be7 {[%clk 0:03:03.1]} 6. Bd3 {[%clk 0:02:58]} 6... d5 {[%clk 0:03:04.3]}
7. Ne5 {[%clk 0:02:55.6]} 7... a6 {[%clk 0:03:03.4]} 8. c3 {[%clk 0:02:53.8]}
8... c5 {[%clk 0:03:03.1]} 9. Qf3 {[%clk 0:02:50.5]} 9... Nc6 {[%clk 0:03:01.2]}
10. Rc1 {[%clk 0:02:42.3]} 10... Rc8 {[%clk 0:02:58.5]} 11. O-O {[%clk
0:02:39.2]} 11... O-O {[%clk 0:02:54]} 12. Qh3 {[%clk 0:02:38.9]} 12... b5
{[%clk 0:02:24.4]} 13. g4 {[%clk 0:02:33.4]} 13... g6 {[%clk 0:02:14.1]} 14.
Ndf3 {[%clk 0:02:11.5]} 14... Ne4 {[%clk 0:02:12.2]} 15. Nxc6 {[%clk 0:01:50.7]}
15... Bxc6 {[%clk 0:02:12.9]} 16. Ne5 {[%clk 0:01:50.3]} 16... Bb7 {[%clk
0:02:12.6]} 17. f3 {[%clk 0:01:49.3]} 17... Nd6 {[%clk 0:02:07.4]} 18. Qh6
{[%clk 0:01:20.4]} 18... Qe8 {[%clk 0:02:01.5]} 19. h4 {[%clk 0:01:04.3]} 19...
c4 {[%clk 0:01:48.2]} 20. Bc2 {[%clk 0:01:03.2]} 20... Bf6 {[%clk 0:01:44.5]}
21. Nxg6 {[%clk 0:00:53.1]} 21... fxg6 {[%clk 0:01:39.8]} 22. Bxd6 {[%clk
0:00:53.6]} 22... Bg7 {[%clk 0:01:41.2]} 23. Qg5 {[%clk 0:00:50.5]} 23... Bf6
{[%clk 0:01:37.8]} 24. Qh6 {[%clk 0:00:38.3]} 24... Bg7 {[%clk 0:01:31.3]} 25.
Qg5 {[%clk 0:00:38.6]} 25... Bf6 {[%clk 0:01:30.7]} 26. Qf4 {[%clk 0:00:38.2]}
26... Rf7 {[%clk 0:01:30.3]} 27. Qg3 {[%clk 0:00:38.1]} 27... Qd8 {[%clk
0:01:29.3]} 28. g5 {[%clk 0:00:37.6]} 28... Bg7 {[%clk 0:01:27.8]} 29. Be5
{[%clk 0:00:38.1]} 29... Qf8 {[%clk 0:01:21.9]} 30. Bxg7 {[%clk 0:00:38]} 30...
Qxg7 {[%clk 0:01:19.5]} 31. f4 {[%clk 0:00:39.1]} 31... Rcf8 {[%clk 0:01:17.4]}
32. Qg4 {[%clk 0:00:39.5]} 32... Bc8 {[%clk 0:01:16.8]} 33. Qg3 {[%clk 0:00:39]}
33... a5 {[%clk 0:01:16.8]} 34. a3 {[%clk 0:00:39.3]} 34... Bd7 {[%clk
0:01:17.2]} 35. h5 {[%clk 0:00:39.5]} 35... gxh5 {[%clk 0:01:16.4]} 36. Qh4
{[%clk 0:00:39.9]} 36... e5 {[%clk 0:01:08.3]} 37. dxe5 {[%clk 0:00:39.6]} 37...
Bg4 {[%clk 0:01:09.4]} 38. Rf2 {[%clk 0:00:37.5]} 38... Rd7 {[%clk 0:01:08.6]}
39. Rcf1 {[%clk 0:00:36.1]} 39... Qe7 {[%clk 0:01:06.6]} 40. Qg3 {[%clk
0:00:34.4]} 40... b4 {[%clk 0:01:07.7]} 41. axb4 {[%clk 0:00:27.1]} 41... axb4
{[%clk 0:01:09.6]} 42. e4 {[%clk 0:00:13.7]} 42... dxe4 {[%clk 0:01:06.9]} 43.
Bxe4 {[%clk 0:00:14.4]} 43... b3 {[%clk 0:01:07.6]} 44. Bf3 {[%clk 0:00:15.1]}
44... Rd3 {[%clk 0:01:06.6]} 45. Qg2 {[%clk 0:00:15.2]} 45... Bf5 {[%clk
0:01:03.1]} 46. Be4 {[%clk 0:00:15.8]} 46... Bh3 {[%clk 0:00:53.9]} 47. Bd5+
{[%clk 0:00:06.8]} 47... Kh8 {[%clk 0:00:54.3]} 48. Qe4 {[%clk 0:00:07.5]} 48...
Bxf1 {[%clk 0:00:54]} 49. Kxf1 {[%clk 0:00:08]} 49... Qd7 {[%clk 0:00:54.6]} 50.
Bxc4 {[%clk 0:00:08.6]} 50... Rd1+ {[%clk 0:00:50.4]} 51. Kg2 {[%clk 0:00:08.6]}
51... Qg4+ {[%clk 0:00:51.5]} 52. Kh2 {[%clk 0:00:09.8]} 52... Qg1+ {[%clk
0:00:51.4]} 53. Kh3 {[%clk 0:00:10.9]} 53... Qxf2 {[%clk 0:00:51.1]} 54. e6
{[%clk 0:00:09.2]} 54... Re1 {[%clk 0:00:50.4]} 55. e7 {[%clk 0:00:07.9]} 55...
Re3+ {[%clk 0:00:48.8]} 56. Qxe3 {[%clk 0:00:06.7]} 56... Qxe3+ {[%clk
0:00:50.7]} 57. Kg2 {[%clk 0:00:07.2]} 57... Rxf4 {[%clk 0:00:51.8]} 58. e8=Q+
{[%clk 0:00:07.7]} 58... Qxe8 {[%clk 0:00:52.5]} 59. g6 {[%clk 0:00:09.2]} 59...
Qxg6+ {[%clk 0:00:50.3]} 0-1

[Event "*** Titled Tuesday Blitz"]
[Site "Chess.com"]
[Date "2019.11.05"]
[Round "2"]
[White "HarutyunianTigranK"]
[Black "Pilopa"]
[Result "1-0"]
[WhiteElo "2816"]
[BlackElo "2560"]
[TimeControl "180+2"]
[EndTime "13:25:42 PST"]
[Termination "HarutyunianTigranK won by checkmate"]

1. c4 {[%clk 0:03:01.9]} 1... Nc6 {[%clk 0:03:00.5]} 2. Nc3 {[%clk 0:03:02]}
2... e5 {[%clk 0:02:58.6]} 3. Nf3 {[%clk 0:03:02.5]} 3... Bb4 {[%clk 0:02:56.7]}
4. Nd5 {[%clk 0:02:59.4]} 4... Bd6 {[%clk 0:02:57.7]} 5. d3 {[%clk 0:02:37.1]}
5... h6 {[%clk 0:02:38.4]} 6. g3 {[%clk 0:02:35.3]} 6... Nf6 {[%clk 0:02:39.3]}
7. Bg2 {[%clk 0:02:35.8]} 7... Nxd5 {[%clk 0:02:39.2]} 8. cxd5 {[%clk
0:02:36.7]} 8... Ne7 {[%clk 0:02:40.8]} 9. Qb3 {[%clk 0:02:34.1]} 9... O-O
{[%clk 0:02:40.7]} 10. O-O {[%clk 0:02:34.9]} 10... c6 {[%clk 0:02:39]} 11. e4
{[%clk 0:02:24.4]} 11... cxd5 {[%clk 0:02:03.3]} 12. exd5 {[%clk 0:02:26.3]}
12... Ng6 {[%clk 0:02:01]} 13. Re1 {[%clk 0:02:23.4]} 13... Bc5 {[%clk
0:01:51.3]} 14. Be3 {[%clk 0:02:14.9]} 14... Bxe3 {[%clk 0:01:50.5]} 15. Rxe3
{[%clk 0:02:13.8]} 15... d6 {[%clk 0:01:51.8]} 16. d4 {[%clk 0:02:14.7]} 16...
exd4 {[%clk 0:01:46.2]} 17. Nxd4 {[%clk 0:02:15.2]} 17... Qf6 {[%clk 0:01:38.5]}
18. Nb5 {[%clk 0:01:43.9]} 18... Bd7 {[%clk 0:01:36.1]} 19. Nc3 {[%clk
0:01:44.8]} 19... Bf5 {[%clk 0:01:21.3]} 20. Rf3 {[%clk 0:01:30.3]} 20... Ne5
{[%clk 0:01:18.7]} 21. Rf4 {[%clk 0:01:31]} 21... Ng6 {[%clk 0:00:56.8]} 22. Rc4
{[%clk 0:01:04.8]} 22... Rae8 {[%clk 0:00:50]} 23. Qxb7 {[%clk 0:01:01.9]} 23...
Bd3 {[%clk 0:00:50.1]} 24. Rc7 {[%clk 0:00:50.5]} 24... Rb8 {[%clk 0:00:44.5]}
25. Qxa7 {[%clk 0:00:50.5]} 25... Rxb2 {[%clk 0:00:45.8]} 26. Rd1 {[%clk
0:00:43.7]} 26... Ne5 {[%clk 0:00:40.6]} 27. f4 {[%clk 0:00:38.1]} 27... Ng4
{[%clk 0:00:20.5]} 28. Rxd3 {[%clk 0:00:36.3]} 28... Re8 {[%clk 0:00:22]} 29.
Be4 {[%clk 0:00:13.6]} 29... Nf2 {[%clk 0:00:16.5]} 30. Qxf2 {[%clk 0:00:12.9]}
30... Rxf2 {[%clk 0:00:18]} 31. Kxf2 {[%clk 0:00:14.8]} 31... g5 {[%clk
0:00:17.7]} 32. f5 {[%clk 0:00:06.2]} 32... g4 {[%clk 0:00:14.9]} 33. Rc4 {[%clk
0:00:04.4]} 33... h5 {[%clk 0:00:15.8]} 34. Bg2 {[%clk 0:00:05.5]} 34... Qg5
{[%clk 0:00:14.1]} 35. Rf4 {[%clk 0:00:06.1]} 35... Qf6 {[%clk 0:00:14.5]} 36.
Ne4 {[%clk 0:00:07.3]} 36... Qb2+ {[%clk 0:00:14.3]} 37. Rd2 {[%clk 0:00:08.9]}
37... Qb6+ {[%clk 0:00:15.8]} 38. Kf1 {[%clk 0:00:09.3]} 38... Rc8 {[%clk
0:00:16.4]} 39. Rff2 {[%clk 0:00:05.4]} 39... Rc1+ {[%clk 0:00:16.3]} 40. Ke2
{[%clk 0:00:06.4]} 40... Qb5+ {[%clk 0:00:17.8]} 41. Ke3 {[%clk 0:00:07.7]}
41... Re1+ {[%clk 0:00:18.9]} 42. Kf4 {[%clk 0:00:09.1]} 42... Qb8 {[%clk
0:00:12.5]} 43. Rde2 {[%clk 0:00:05.6]} 43... Rc1 {[%clk 0:00:11.9]} 44. Nf6+
{[%clk 0:00:06.2]} 44... Kg7 {[%clk 0:00:11.3]} 45. Nxh5+ {[%clk 0:00:04.8]}
45... Kh6 {[%clk 0:00:12.7]} 46. Nf6 {[%clk 0:00:05.8]} 46... Rc4+ {[%clk
0:00:13.4]} 47. Re4 {[%clk 0:00:06.9]} 47... Rc3 {[%clk 0:00:07.9]} 48. Nxg4+
{[%clk 0:00:07.4]} 48... Kg7 {[%clk 0:00:09.4]} 49. f6+ {[%clk 0:00:08.2]} 49...
Kg6 {[%clk 0:00:10.9]} 50. Re7 {[%clk 0:00:05.4]} 50... Qb4+ {[%clk 0:00:09.2]}
51. Be4+ {[%clk 0:00:06.6]} 51... Kh5 {[%clk 0:00:05.1]} 52. Rxf7 {[%clk
0:00:07.9]} 52... Rf3+ {[%clk 0:00:03.5]} 53. Rxf3 {[%clk 0:00:08]} 53... Qd2+
{[%clk 0:00:05]} 54. Ne3 {[%clk 0:00:08.9]} 54... Kh6 {[%clk 0:00:05.9]} 55.
Rh7# {[%clk 0:00:09.6]} 1-0

[Event "*** Titled Tuesday Blitz"]
[Site "Chess.com"]
[Date "2019.11.05"]
[Round "2"]
[White "chito89"]
[Black "ural58"]
[Result "1-0"]
[WhiteElo "2742"]
[BlackElo "2387"]
[TimeControl "180+2"]
[EndTime "13:25:43 PST"]
[Termination "chito89 won on time"]

1. e4 {[%clk 0:02:31.9]} 1... d5 {[%clk 0:02:59.9]} 2. exd5 {[%clk 0:02:31.3]}
2... Qxd5 {[%clk 0:03:01.2]} 3. Nc3 {[%clk 0:02:32.7]} 3... Qa5 {[%clk 0:03:02]}
4. d4 {[%clk 0:02:34.2]} 4... Nf6 {[%clk 0:03:03.1]} 5. Bc4 {[%clk 0:02:35.4]}
5... Bg4 {[%clk 0:03:01.9]} 6. f3 {[%clk 0:02:32.6]} 6... Be6 {[%clk 0:02:53.5]}
7. Bxe6 {[%clk 0:02:30.8]} 7... fxe6 {[%clk 0:02:54.6]} 8. Ne2 {[%clk
0:02:26.8]} 8... Nc6 {[%clk 0:02:54.6]} 9. O-O {[%clk 0:02:16.2]} 9... O-O-O
{[%clk 0:02:55.4]} 10. Qe1 {[%clk 0:02:17.6]} 10... h6 {[%clk 0:02:36.3]} 11.
Be3 {[%clk 0:02:08.5]} 11... g5 {[%clk 0:02:33.9]} 12. Rd1 {[%clk 0:02:08.7]}
12... Bg7 {[%clk 0:02:32.3]} 13. Bf2 {[%clk 0:02:06.5]} 13... Nd5 {[%clk
0:02:18.1]} 14. a3 {[%clk 0:01:45.4]} 14... Rhf8 {[%clk 0:02:08.6]} 15. Ne4
{[%clk 0:01:45.9]} 15... Qxe1 {[%clk 0:02:04]} 16. Rfxe1 {[%clk 0:01:44.4]}
16... b6 {[%clk 0:01:58.1]} 17. c3 {[%clk 0:01:38.9]} 17... a5 {[%clk
0:01:44.3]} 18. a4 {[%clk 0:01:37.3]} 18... Kb7 {[%clk 0:01:38.8]} 19. h4 {[%clk
0:01:35.3]} 19... Bf6 {[%clk 0:01:33.1]} 20. hxg5 {[%clk 0:01:28.7]} 20... Bxg5
{[%clk 0:01:21]} 21. N2g3 {[%clk 0:01:19.3]} 21... Bf4 {[%clk 0:01:11]} 22. Nh5
{[%clk 0:01:12.3]} 22... Rg8 {[%clk 0:01:08.9]} 23. g3 {[%clk 0:01:03.6]} 23...
Bd6 {[%clk 0:01:07.9]} 24. Nxd6+ {[%clk 0:01:01.3]} 24... Rxd6 {[%clk 0:01:03]}
25. Kg2 {[%clk 0:01:01.9]} 25... Nd8 {[%clk 0:00:58.7]} 26. g4 {[%clk
0:01:02.5]} 26... Nf6 {[%clk 0:00:51.5]} 27. Bg3 {[%clk 0:00:50]} 27... Nxh5
{[%clk 0:00:50.5]} 28. Bxd6 {[%clk 0:00:50]} 28... exd6 {[%clk 0:00:50.7]} 29.
Rh1 {[%clk 0:00:50]} 29... Nf4+ {[%clk 0:00:43.1]} 30. Kg3 {[%clk 0:00:50.2]}
30... e5 {[%clk 0:00:36.7]} 31. dxe5 {[%clk 0:00:52.1]} 31... dxe5 {[%clk
0:00:36.7]} 32. Rxh6 {[%clk 0:00:53.5]} 32... Nc6 {[%clk 0:00:24.3]} 33. Rd7
{[%clk 0:00:52.2]} 33... Ne2+ {[%clk 0:00:19.3]} 34. Kf2 {[%clk 0:00:52.1]}
34... Nf4 {[%clk 0:00:20.2]} 35. Ke3 {[%clk 0:00:48.2]} 35... Rf8 {[%clk
0:00:18.3]} 36. Ke4 {[%clk 0:00:48.6]} 36... Ne2 {[%clk 0:00:18.4]} 37. Rhh7
{[%clk 0:00:48.3]} 37... Rc8 {[%clk 0:00:18.7]} 38. g5 {[%clk 0:00:47]} 38...
Ng3+ {[%clk 0:00:19.8]} 39. Kd5 {[%clk 0:00:45.3]} 39... Nb8 {[%clk 0:00:17.5]}
40. Rdf7 {[%clk 0:00:44.1]} 40... Nc6 {[%clk 0:00:18.1]} 41. g6 {[%clk
0:00:44.1]} 41... Rd8+ {[%clk 0:00:16.6]} 42. Ke6 {[%clk 0:00:44.1]} 42... Rc8
{[%clk 0:00:13.9]} 43. Kf6 {[%clk 0:00:45.6]} 43... e4 {[%clk 0:00:14.1]} 44.
Rh3 {[%clk 0:00:43.4]} 44... Ne2 {[%clk 0:00:10.3]} 45. fxe4 {[%clk 0:00:44.3]}
45... Nf4 {[%clk 0:00:10.7]} 46. Rhh7 {[%clk 0:00:45.7]} 46... Nd8 {[%clk
0:00:08.4]} 47. Rf8 {[%clk 0:00:45.9]} 47... Nde6 {[%clk 0:00:08.5]} 48. Rxc8
{[%clk 0:00:45.8]} 48... Kxc8 {[%clk 0:00:09.9]} 49. Re7 {[%clk 0:00:47.1]}
49... Nd8 {[%clk 0:00:08.9]} 50. Kf5 {[%clk 0:00:45.1]} 50... Nh5 {[%clk
0:00:09.6]} 51. Rh7 {[%clk 0:00:46.4]} 51... Ng3+ {[%clk 0:00:10.4]} 52. Ke5
{[%clk 0:00:47.9]} 52... Nc6+ {[%clk 0:00:09.8]} 53. Kf4 {[%clk 0:00:47.5]}
53... Ne2+ {[%clk 0:00:10.4]} 54. Ke3 {[%clk 0:00:48.7]} 54... Ng3 {[%clk
0:00:09.5]} 55. Rh3 {[%clk 0:00:48.1]} 55... Nf1+ {[%clk 0:00:09.9]} 56. Ke2
{[%clk 0:00:49.3]} 1-0